[Event "*** Titled Tuesday Blitz"]
[Site "Chess.com"]
[Date "2020.11.10"]
[Round "2"]
[White "FMJoseHerrera"]
[Black "joppie2"]
[Result "0-1"]
[WhiteElo "2587"]
[BlackElo "2958"]
[TimeControl "180+1"]
[EndTime "10:19:10 PST"]
[Termination "joppie2 won on time"]

1. Nf3 {[%clk 0:03:00.9]} 1... g6 {[%clk 0:02:59.6]} 2. g3 {[%clk 0:02:58.3]}
2... Bg7 {[%clk 0:02:59.8]} 3. Bg2 {[%clk 0:02:58.8]} 3... e5 {[%clk 0:03:00.4]}
4. d3 {[%clk 0:02:59.1]} 4... d5 {[%clk 0:03:00.4]} 5. Nc3 {[%clk 0:02:58.9]}
5... Ne7 {[%clk 0:03:00.6]} 6. h4 {[%clk 0:02:57.1]} 6... h6 {[%clk 0:02:59.4]}
7. e4 {[%clk 0:02:56.5]} 7... d4 {[%clk 0:02:59]} 8. Ne2 {[%clk 0:02:56.5]} 8...
c5 {[%clk 0:02:59.3]} 9. Bd2 {[%clk 0:02:55.8]} 9... Nbc6 {[%clk 0:02:59.6]} 10.
a3 {[%clk 0:02:55]} 10... Be6 {[%clk 0:02:57.5]} 11. b4 {[%clk 0:02:54.6]} 11...
c4 {[%clk 0:02:51.5]} 12. b5 {[%clk 0:02:50.7]} 12... Nb8 {[%clk 0:02:49.6]} 13.
a4 {[%clk 0:02:49.6]} 13... c3 {[%clk 0:02:48.5]} 14. Bc1 {[%clk 0:02:49.1]}
14... a6 {[%clk 0:02:49]} 15. bxa6 {[%clk 0:02:48.9]} 15... Rxa6 {[%clk
0:02:47.5]} 16. O-O {[%clk 0:02:47.7]} 16... Nbc6 {[%clk 0:02:44.7]} 17. Nh2
{[%clk 0:02:47]} 17... Qd7 {[%clk 0:02:32.3]} 18. f4 {[%clk 0:02:46]} 18... Nb4
{[%clk 0:02:31.5]} 19. f5 {[%clk 0:02:41.1]} 19... gxf5 {[%clk 0:02:30.9]} 20.
exf5 {[%clk 0:02:42]} 20... Nxf5 {[%clk 0:02:28.6]} 21. Be4 {[%clk 0:02:11.4]}
21... Nd5 {[%clk 0:02:25.6]} 22. Bxf5 {[%clk 0:01:42.8]} 22... Bxf5 {[%clk
0:02:23.4]} 23. Ba3 {[%clk 0:01:40.1]} 23... Rxa4 {[%clk 0:02:21.3]} 24. Qb1
{[%clk 0:01:37.5]} 24... Ne3 {[%clk 0:02:19.8]} 25. Rf2 {[%clk 0:01:31.1]} 25...
Bf8 {[%clk 0:02:13.6]} 26. Bxf8 {[%clk 0:01:26.1]} 26... Rxa1 {[%clk 0:02:14.5]}
27. Qxa1 {[%clk 0:01:24.8]} 27... Kxf8 {[%clk 0:02:15]} 28. Qa5 {[%clk
0:01:01.9]} 28... f6 {[%clk 0:01:50.6]} 29. Qb6 {[%clk 0:00:54.4]} 29... Kg7
{[%clk 0:01:47.5]} 30. g4 {[%clk 0:00:51]} 30... Be6 {[%clk 0:01:42.6]} 31. Ng3
{[%clk 0:00:49.1]} 31... Rf8 {[%clk 0:01:18.9]} 32. Qc5 {[%clk 0:00:47.1]} 32...
Bxg4 {[%clk 0:01:13.7]} 33. Nxg4 {[%clk 0:00:45.7]} 33... Qxg4 {[%clk
0:01:09.6]} 0-1

[Event "*** Titled Tuesday Blitz"]
[Site "Chess.com"]
[Date "2020.11.10"]
[Round "2"]
[White "Jenia84"]
[Black "NewBornNow"]
[Result "0-1"]
[WhiteElo "2317"]
[BlackElo "2643"]
[TimeControl "180+1"]
[EndTime "10:19:12 PST"]
[Termination "NewBornNow won by resignation"]

1. Nf3 {[%clk 0:03:00.9]} 1... c5 {[%clk 0:02:59.6]} 2. b3 {[%clk 0:03:00.5]}
2... d6 {[%clk 0:02:56.2]} 3. Bb2 {[%clk 0:03:00.9]} 3... e5 {[%clk 0:02:56.2]}
4. e3 {[%clk 0:03:01.2]} 4... f5 {[%clk 0:02:56.1]} 5. Be2 {[%clk 0:03:01.3]}
5... Nf6 {[%clk 0:02:55.9]} 6. d4 {[%clk 0:02:59.6]} 6... cxd4 {[%clk
0:02:55.8]} 7. exd4 {[%clk 0:02:59.1]} 7... e4 {[%clk 0:02:56.2]} 8. Ng5 {[%clk
0:02:50.2]} 8... d5 {[%clk 0:02:54.4]} 9. Qd2 {[%clk 0:02:42.6]} 9... h6 {[%clk
0:02:52.3]} 10. Nh3 {[%clk 0:02:35.5]} 10... g5 {[%clk 0:02:51.8]} 11. Nc3
{[%clk 0:02:30.7]} 11... Nc6 {[%clk 0:02:49.4]} 12. O-O-O {[%clk 0:02:28.5]}
12... f4 {[%clk 0:02:39.9]} 13. f3 {[%clk 0:01:39]} 13... e3 {[%clk 0:02:36.6]}
14. Qd3 {[%clk 0:01:39.1]} 14... Rg8 {[%clk 0:02:36.5]} 15. Rhe1 {[%clk
0:01:32.4]} 15... Nb4 {[%clk 0:02:32.3]} 16. Qb5+ {[%clk 0:01:25.3]} 16... Bd7
{[%clk 0:02:31.9]} 17. Qxb7 {[%clk 0:01:23.2]} 17... a6 {[%clk 0:02:11.4]} 18.
Na4 {[%clk 0:00:17.5]} 18... Bxa4 {[%clk 0:02:00.6]} 19. bxa4 {[%clk 0:00:17]}
19... Rg7 {[%clk 0:02:00.4]} 20. Bb5+ {[%clk 0:00:11.6]} 20... axb5 {[%clk
0:02:00.2]} 21. Qxb5+ {[%clk 0:00:11.7]} 21... Qd7 {[%clk 0:02:00.2]} 22. a3
{[%clk 0:00:11.3]} 22... Nc6 {[%clk 0:01:51.6]} 23. g3 {[%clk 0:00:09.2]} 23...
Rb8 {[%clk 0:01:46.1]} 24. Qa6 {[%clk 0:00:09.4]} 24... Qb7 {[%clk 0:01:32.6]}
25. Qxb7 {[%clk 0:00:09.4]} 25... Rgxb7 {[%clk 0:01:32]} 26. gxf4 {[%clk
0:00:10.3]} 26... Rxb2 {[%clk 0:01:28.4]} 27. Rxe3+ {[%clk 0:00:09.4]} 27... Kd8
{[%clk 0:01:26.6]} 28. fxg5 {[%clk 0:00:10.3]} 28... hxg5 {[%clk 0:01:23.6]} 29.
Nxg5 {[%clk 0:00:09]} 29... Kd7 {[%clk 0:01:17.2]} 30. Kd2 {[%clk 0:00:07.2]}
30... Nxd4 {[%clk 0:01:13.4]} 31. Nf7 {[%clk 0:00:06.6]} 31... Rxc2+ {[%clk
0:01:05.9]} 0-1

[Event "*** Titled Tuesday Blitz"]
[Site "Chess.com"]
[Date "2020.11.10"]
[Round "2"]
[White "yobdc"]
[Black "FMOlexandrProhorov"]
[Result "1-0"]
[WhiteElo "2394"]
[BlackElo "2103"]
[TimeControl "180+1"]
[EndTime "10:19:15 PST"]
[Termination "yobdc won by resignation"]

1. d4 {[%clk 0:03:00.9]} 1... Nf6 {[%clk 0:02:57.6]} 2. Nf3 {[%clk 0:02:59.5]}
2... c5 {[%clk 0:02:57.7]} 3. e3 {[%clk 0:02:59.1]} 3... b6 {[%clk 0:02:54.6]}
4. Bd3 {[%clk 0:02:58.9]} 4... Bb7 {[%clk 0:02:54.5]} 5. O-O {[%clk 0:02:59.4]}
5... e6 {[%clk 0:02:54.4]} 6. Nbd2 {[%clk 0:02:59.3]} 6... Be7 {[%clk
0:02:53.4]} 7. b3 {[%clk 0:02:59.5]} 7... O-O {[%clk 0:02:52.5]} 8. Bb2 {[%clk
0:02:59.8]} 8... d5 {[%clk 0:02:46.6]} 9. Ne5 {[%clk 0:02:59.2]} 9... Nbd7
{[%clk 0:02:45.4]} 10. f4 {[%clk 0:02:59.3]} 10... Qc7 {[%clk 0:02:31.4]} 11.
Qf3 {[%clk 0:02:57.1]} 11... Rac8 {[%clk 0:02:24.3]} 12. Qh3 {[%clk 0:02:55.9]}
12... g6 {[%clk 0:02:19.7]} 13. Rad1 {[%clk 0:02:44.5]} 13... Ne8 {[%clk
0:01:50.8]} 14. Ndf3 {[%clk 0:02:33.4]} 14... Ng7 {[%clk 0:01:32.8]} 15. Ng5
{[%clk 0:02:25.7]} 15... Bxg5 {[%clk 0:01:23.8]} 16. fxg5 {[%clk 0:02:08.3]}
16... Nxe5 {[%clk 0:01:23.4]} 17. dxe5 {[%clk 0:02:09.2]} 17... Nf5 {[%clk
0:01:16.3]} 18. Bxf5 {[%clk 0:02:08.8]} 18... exf5 {[%clk 0:01:05.1]} 19. c4
{[%clk 0:01:46.8]} 19... dxc4 {[%clk 0:01:01.8]} 20. bxc4 {[%clk 0:01:47.7]}
20... Qe7 {[%clk 0:00:58.3]} 21. Qg3 {[%clk 0:01:44.7]} 21... Qe6 {[%clk
0:00:56.7]} 22. Qf4 {[%clk 0:01:43.3]} 22... Rfd8 {[%clk 0:00:55]} 23. Rd6
{[%clk 0:01:42.4]} 23... Rxd6 {[%clk 0:00:45.7]} 24. exd6 {[%clk 0:01:43.3]}
24... Qe4 {[%clk 0:00:40.6]} 25. Qxe4 {[%clk 0:01:41.6]} 25... Bxe4 {[%clk
0:00:40.4]} 26. Bf6 {[%clk 0:01:41.6]} 26... Bc6 {[%clk 0:00:37.2]} 27. Rd1
{[%clk 0:01:41.2]} 27... Bd7 {[%clk 0:00:37.4]} 28. Rd5 {[%clk 0:01:36.3]} 28...
Re8 {[%clk 0:00:35.8]} 29. Be7 {[%clk 0:01:34.3]} 29... Rc8 {[%clk 0:00:15.5]}
30. Kf2 {[%clk 0:01:32.5]} 30... Kg7 {[%clk 0:00:08.6]} 31. Bf6+ {[%clk
0:01:30.7]} 31... Kf8 {[%clk 0:00:08.3]} 32. Re5 {[%clk 0:01:30.2]} 32... Re8
{[%clk 0:00:07.3]} 33. Be7+ {[%clk 0:01:30]} 33... Kg8 {[%clk 0:00:07.7]} 34. e4
{[%clk 0:01:27.9]} 34... fxe4 {[%clk 0:00:07.1]} 35. Rxe4 {[%clk 0:01:28.8]}
35... Bc6 {[%clk 0:00:06.7]} 36. Ke3 {[%clk 0:01:25.1]} 36... f5 {[%clk
0:00:05.7]} 37. gxf6 {[%clk 0:01:24.4]} 37... Kf7 {[%clk 0:00:06.3]} 38. Rh4
{[%clk 0:01:24.1]} 38... h5 {[%clk 0:00:05.6]} 39. g4 {[%clk 0:01:24.1]} 39...
hxg4 {[%clk 0:00:04.3]} 40. Rh7+ {[%clk 0:01:21.7]} 40... Ke6 {[%clk 0:00:04.2]}
41. f7 {[%clk 0:01:22]} 1-0

[Event "*** Titled Tuesday Blitz"]
[Site "Chess.com"]
[Date "2020.11.10"]
[Round "2"]
[White "Lion-Al-Messi"]
[Black "FormerProdigy"]
[Result "0-1"]
[WhiteElo "2556"]
[BlackElo "2857"]
[TimeControl "180+1"]
[EndTime "10:19:19 PST"]
[Termination "FormerProdigy won by resignation"]

1. d4 {[%clk 0:03:00.9]} 1... Nf6 {[%clk 0:02:59.5]} 2. Nf3 {[%clk 0:03:01.8]}
2... e6 {[%clk 0:02:58.7]} 3. Nc3 {[%clk 0:03:02.7]} 3... d5 {[%clk 0:02:57.3]}
4. Bg5 {[%clk 0:03:03.3]} 4... Bb4 {[%clk 0:02:49.3]} 5. e3 {[%clk 0:02:57.8]}
5... c5 {[%clk 0:02:41.4]} 6. Bd3 {[%clk 0:02:57.6]} 6... h6 {[%clk 0:02:35]} 7.
Bxf6 {[%clk 0:02:57]} 7... Qxf6 {[%clk 0:02:35.9]} 8. O-O {[%clk 0:02:55.2]}
8... O-O {[%clk 0:02:24]} 9. a3 {[%clk 0:02:35.8]} 9... Bxc3 {[%clk 0:02:21.9]}
10. bxc3 {[%clk 0:02:36.7]} 10... Nc6 {[%clk 0:02:16.9]} 11. e4 {[%clk
0:02:32.6]} 11... cxd4 {[%clk 0:02:09]} 12. exd5 {[%clk 0:02:32.6]} 12... exd5
{[%clk 0:02:06.5]} 13. Nxd4 {[%clk 0:02:30.2]} 13... Ne5 {[%clk 0:01:58.8]} 14.
Rb1 {[%clk 0:02:27.8]} 14... b6 {[%clk 0:01:58.6]} 15. Re1 {[%clk 0:02:27.3]}
15... Bd7 {[%clk 0:01:56.3]} 16. Qd2 {[%clk 0:02:11.6]} 16... Rfe8 {[%clk
0:01:55.7]} 17. f3 {[%clk 0:02:07.8]} 17... Rac8 {[%clk 0:01:54.8]} 18. Re2
{[%clk 0:02:01.1]} 18... Qd6 {[%clk 0:01:44.3]} 19. Rbe1 {[%clk 0:01:32.6]}
19... Nxd3 {[%clk 0:01:43.2]} 20. Rxe8+ {[%clk 0:01:31.2]} 20... Rxe8 {[%clk
0:01:43.8]} 21. Rxe8+ {[%clk 0:01:31]} 21... Bxe8 {[%clk 0:01:44.7]} 22. Qxd3
{[%clk 0:01:03.8]} 22... Qxa3 {[%clk 0:01:43.8]} 23. Nf5 {[%clk 0:01:03.8]}
23... Qc5+ {[%clk 0:01:41.1]} 24. Kh1 {[%clk 0:00:58.3]} 24... Bd7 {[%clk
0:01:27.7]} 25. Ne3 {[%clk 0:00:41.4]} 25... Be6 {[%clk 0:01:27.2]} 26. Qd4
{[%clk 0:00:35.6]} 26... a5 {[%clk 0:01:16.2]} 27. Kg1 {[%clk 0:00:34.9]} 27...
a4 {[%clk 0:01:10.7]} 28. Qxc5 {[%clk 0:00:17.4]} 28... bxc5 {[%clk 0:01:11.6]}
29. c4 {[%clk 0:00:15.8]} 29... a3 {[%clk 0:00:58.9]} 30. c3 {[%clk 0:00:15.4]}
30... Bf5 {[%clk 0:00:57.9]} 31. cxd5 {[%clk 0:00:08.1]} 31... a2 {[%clk
0:00:58]} 32. Nxf5 {[%clk 0:00:08.4]} 32... a1=Q+ {[%clk 0:00:58]} 33. Kf2
{[%clk 0:00:08.2]} 33... Qxc3 {[%clk 0:00:57.8]} 34. d6 {[%clk 0:00:08.2]} 34...
Qd2+ {[%clk 0:00:56.5]} 35. Kg3 {[%clk 0:00:07.7]} 35... Qg5+ {[%clk 0:00:56.7]}
0-1

[Event "*** Titled Tuesday Blitz"]
[Site "Chess.com"]
[Date "2020.11.10"]
[Round "2"]
[White "FrenchMonster2002"]
[Black "ecwinslow"]
[Result "1-0"]
[WhiteElo "2446"]
[BlackElo "2230"]
[TimeControl "180+1"]
[EndTime "10:19:19 PST"]
[Termination "FrenchMonster2002 won on time"]

1. e4 {[%clk 0:03:00.9]} 1... c5 {[%clk 0:02:59.6]} 2. Nc3 {[%clk 0:03:00.8]}
2... d6 {[%clk 0:02:58.2]} 3. d4 {[%clk 0:03:00.8]} 3... cxd4 {[%clk 0:02:57.4]}
4. Qxd4 {[%clk 0:03:01.7]} 4... Nc6 {[%clk 0:02:56.5]} 5. Qd2 {[%clk 0:03:02.4]}
5... g6 {[%clk 0:02:54.3]} 6. b3 {[%clk 0:03:03.3]} 6... Bg7 {[%clk 0:02:51.4]}
7. Bb2 {[%clk 0:03:03.2]} 7... Nf6 {[%clk 0:02:46.6]} 8. O-O-O {[%clk
0:03:03.5]} 8... O-O {[%clk 0:02:36.7]} 9. Kb1 {[%clk 0:03:01.9]} 9... a6 {[%clk
0:02:25]} 10. f3 {[%clk 0:03:01.1]} 10... Re8 {[%clk 0:02:22.1]} 11. g4 {[%clk
0:02:59.1]} 11... b5 {[%clk 0:02:04.2]} 12. h4 {[%clk 0:02:58.8]} 12... Be6
{[%clk 0:01:38.1]} 13. h5 {[%clk 0:02:55.1]} 13... b4 {[%clk 0:01:31.2]} 14. Nd5
{[%clk 0:02:50.9]} 14... Bxd5 {[%clk 0:01:27.4]} 15. exd5 {[%clk 0:02:50.5]}
15... Ne5 {[%clk 0:01:26.7]} 16. hxg6 {[%clk 0:02:42.4]} 16... hxg6 {[%clk
0:01:21.8]} 17. g5 {[%clk 0:02:32.8]} 17... Nh5 {[%clk 0:01:14.2]} 18. f4 {[%clk
0:02:29]} 18... Ng4 {[%clk 0:00:44.1]} 19. Bxg7 {[%clk 0:02:16.1]} 19... Kxg7
{[%clk 0:00:44.1]} 20. Rh4 {[%clk 0:01:27.6]} 20... f5 {[%clk 0:00:35.2]} 21.
Be2 {[%clk 0:01:23.6]} 21... Qd7 {[%clk 0:00:24.4]} 22. Nf3 {[%clk 0:01:05]}
22... a5 {[%clk 0:00:20.1]} 23. Nd4 {[%clk 0:01:03.7]} 23... Kf7 {[%clk
0:00:11.7]} 24. Bxg4 {[%clk 0:00:55.5]} 24... fxg4 {[%clk 0:00:10.5]} 25. f5
{[%clk 0:00:56.4]} 25... Rh8 {[%clk 0:00:08]} 26. Rxg4 {[%clk 0:00:49.7]} 26...
gxf5 {[%clk 0:00:05.1]} 27. g6+ {[%clk 0:00:50.1]} 27... Kg8 {[%clk 0:00:02.9]}
28. Rg5 {[%clk 0:00:49.4]} 28... Nf6 {[%clk 0:00:02.2]} 29. Ne6 {[%clk 0:00:44]}
1-0

[Event "*** Titled Tuesday Blitz"]
[Site "Chess.com"]
[Date "2020.11.10"]
[Round "2"]
[White "VinzentSpitzl"]
[Black "IMDT02"]
[Result "0-1"]
[WhiteElo "2309"]
[BlackElo "2603"]
[TimeControl "180+1"]
[EndTime "10:19:20 PST"]
[Termination "IMDT02 won by resignation"]

1. e4 {[%clk 0:02:57.5]} 1... c6 {[%clk 0:02:59.6]} 2. Nf3 {[%clk 0:02:51.3]}
2... d5 {[%clk 0:03:00.5]} 3. Nc3 {[%clk 0:02:51.9]} 3... dxe4 {[%clk
0:02:59.9]} 4. Nxe4 {[%clk 0:02:52.8]} 4... Nf6 {[%clk 0:02:58.7]} 5. Qe2 {[%clk
0:02:53]} 5... Nxe4 {[%clk 0:02:57.2]} 6. Qxe4 {[%clk 0:02:53.9]} 6... Qd5
{[%clk 0:02:57.7]} 7. Qh4 {[%clk 0:02:51.3]} 7... Qe6+ {[%clk 0:02:55.1]} 8. Be2
{[%clk 0:02:51.5]} 8... Qg4 {[%clk 0:02:54.5]} 9. Qg3 {[%clk 0:02:43.3]} 9...
Qxg3 {[%clk 0:02:50.8]} 10. hxg3 {[%clk 0:02:42.8]} 10... g6 {[%clk 0:02:51.3]}
11. d4 {[%clk 0:02:42]} 11... Bg7 {[%clk 0:02:51.3]} 12. c3 {[%clk 0:02:42.5]}
12... h5 {[%clk 0:02:49.4]} 13. Bf4 {[%clk 0:02:42]} 13... Bf5 {[%clk
0:02:48.1]} 14. O-O-O {[%clk 0:02:38.7]} 14... Nd7 {[%clk 0:02:48.5]} 15. Rhe1
{[%clk 0:02:36.4]} 15... O-O {[%clk 0:02:47.6]} 16. Bd3 {[%clk 0:02:34.3]} 16...
Bxd3 {[%clk 0:02:44.7]} 17. Rxd3 {[%clk 0:02:35.2]} 17... e6 {[%clk 0:02:44.9]}
18. Be5 {[%clk 0:02:24.3]} 18... Rad8 {[%clk 0:02:40.8]} 19. Kc2 {[%clk
0:02:15.8]} 19... Nb6 {[%clk 0:02:33.5]} 20. a3 {[%clk 0:02:05.5]} 20... Rd5
{[%clk 0:02:31.2]} 21. Bxg7 {[%clk 0:01:55.1]} 21... Kxg7 {[%clk 0:02:30.9]} 22.
b3 {[%clk 0:01:55.8]} 22... Rfd8 {[%clk 0:02:30.4]} 23. c4 {[%clk 0:01:52.1]}
23... R5d7 {[%clk 0:02:29]} 24. Red1 {[%clk 0:01:49.3]} 24... Nc8 {[%clk
0:02:27.3]} 25. Kc3 {[%clk 0:01:43.2]} 25... Ne7 {[%clk 0:02:27.4]} 26. Ne5
{[%clk 0:01:35.8]} 26... Rd6 {[%clk 0:02:26.9]} 27. g4 {[%clk 0:01:27.7]} 27...
f6 {[%clk 0:02:20.8]} 28. c5 {[%clk 0:01:07.7]} 28... Rd5 {[%clk 0:02:19.7]} 29.
Nc4 {[%clk 0:01:05.5]} 29... hxg4 {[%clk 0:02:16.5]} 30. Nd6 {[%clk 0:01:04.4]}
30... Rd7 {[%clk 0:02:09.5]} 31. b4 {[%clk 0:00:57.8]} 31... Nf5 {[%clk
0:02:05.5]} 32. Re1 {[%clk 0:00:56.4]} 32... Nxd6 {[%clk 0:02:03.9]} 33. cxd6
{[%clk 0:00:51.9]} 33... R5xd6 {[%clk 0:01:58.9]} 34. Rde3 {[%clk 0:00:50.1]}
34... Re7 {[%clk 0:01:51.1]} 35. Kc4 {[%clk 0:00:49.4]} 35... f5 {[%clk
0:01:50.4]} 36. g3 {[%clk 0:00:48.8]} 36... Kf6 {[%clk 0:01:49.4]} 37. Re5
{[%clk 0:00:48.7]} 37... Rd5 {[%clk 0:01:46.1]} 38. R5e3 {[%clk 0:00:46.3]}
38... Rd6 {[%clk 0:01:43.2]} 39. a4 {[%clk 0:00:42.4]} 39... Red7 {[%clk
0:01:42.8]} 40. Rd1 {[%clk 0:00:41.5]} 40... Rd5 {[%clk 0:01:35]} 41. b5 {[%clk
0:00:35.6]} 41... c5 {[%clk 0:01:27.1]} 42. a5 {[%clk 0:00:31.5]} 42... Rxd4+
{[%clk 0:01:23.1]} 43. Rxd4 {[%clk 0:00:29.1]} 43... cxd4 {[%clk 0:01:24]} 44.
Rd3 {[%clk 0:00:27.8]} 44... e5 {[%clk 0:01:24.1]} 45. Kc5 {[%clk 0:00:24.3]}
45... Ke6 {[%clk 0:01:20.6]} 46. a6 {[%clk 0:00:23.9]} 46... bxa6 {[%clk
0:01:17.7]} 47. bxa6 {[%clk 0:00:21.9]} 47... Rc7+ {[%clk 0:01:17.7]} 48. Kb5
{[%clk 0:00:21.8]} 48... Kd5 {[%clk 0:01:17.4]} 0-1

[Event "*** Titled Tuesday Blitz"]
[Site "Chess.com"]
[Date "2020.11.10"]
[Round "2"]
[White "Brave_spirit12"]
[Black "alexrustemov"]
[Result "0-1"]
[WhiteElo "2496"]
[BlackElo "2719"]
[TimeControl "180+1"]
[EndTime "10:19:21 PST"]
[Termination "alexrustemov won by resignation"]

1. e4 {[%clk 0:03:00.9]} 1... e6 {[%clk 0:02:59.6]} 2. d4 {[%clk 0:03:00.2]}
2... d5 {[%clk 0:03:00.5]} 3. exd5 {[%clk 0:03:01.1]} 3... exd5 {[%clk
0:03:00.3]} 4. Nc3 {[%clk 0:03:01.6]} 4... Nf6 {[%clk 0:02:58.5]} 5. Bd3 {[%clk
0:03:02.1]} 5... Be7 {[%clk 0:02:52.9]} 6. Nge2 {[%clk 0:03:01.9]} 6... O-O
{[%clk 0:02:51.8]} 7. Bg5 {[%clk 0:02:59.6]} 7... c6 {[%clk 0:02:48.9]} 8. Qd2
{[%clk 0:02:59.5]} 8... Nbd7 {[%clk 0:02:47.3]} 9. O-O-O {[%clk 0:02:58.6]} 9...
Re8 {[%clk 0:02:45.7]} 10. h4 {[%clk 0:02:56.4]} 10... b5 {[%clk 0:02:40.3]} 11.
f3 {[%clk 0:02:54.6]} 11... Qa5 {[%clk 0:02:32.8]} 12. g4 {[%clk 0:02:36.9]}
12... b4 {[%clk 0:02:31.6]} 13. Nb1 {[%clk 0:02:34.6]} 13... Qxa2 {[%clk
0:02:30.9]} 14. h5 {[%clk 0:02:28.6]} 14... Nb6 {[%clk 0:02:28.2]} 15. Bxf6
{[%clk 0:02:26]} 15... Bxf6 {[%clk 0:02:25.6]} 16. g5 {[%clk 0:02:26.3]} 16...
Na4 {[%clk 0:01:58.6]} 17. Qxb4 {[%clk 0:01:55.1]} 17... Bxg5+ {[%clk
0:01:55.8]} 18. f4 {[%clk 0:01:55.1]} 18... Bh6 {[%clk 0:01:39.2]} 19. Rdf1
{[%clk 0:01:37.9]} 19... Bg4 {[%clk 0:01:36.5]} 20. Nec3 {[%clk 0:01:30.4]}
20... Nxc3 {[%clk 0:01:33.8]} 21. Nxc3 {[%clk 0:01:31.3]} 21... Qa1+ {[%clk
0:01:15.9]} 22. Nb1 {[%clk 0:01:11.3]} 22... Rab8 {[%clk 0:01:14.8]} 23. Qc3
{[%clk 0:01:07.2]} 23... Be2 {[%clk 0:01:10.6]} 24. Bxe2 {[%clk 0:00:37.4]}
24... Rxe2 {[%clk 0:01:11.5]} 25. Rf3 {[%clk 0:00:26.1]} 25... Rbe8 {[%clk
0:01:03.1]} 26. Qxc6 {[%clk 0:00:18]} 26... Qa5 {[%clk 0:00:54.5]} 27. Nc3
{[%clk 0:00:14.9]} 27... R2e6 {[%clk 0:00:53.2]} 28. Qxd5 {[%clk 0:00:10.8]}
28... Qa1+ {[%clk 0:00:50.3]} 29. Nb1 {[%clk 0:00:09.4]} 29... Rb6 {[%clk
0:00:51]} 30. Rb3 {[%clk 0:00:04]} 30... Bxf4+ {[%clk 0:00:48.8]} 0-1

[Event "*** Titled Tuesday Blitz"]
[Site "Chess.com"]
[Date "2020.11.10"]
[Round "2"]
[White "lacafi"]
[Black "DishonorOnYourCow"]
[Result "0-1"]
[WhiteElo "2120"]
[BlackElo "2394"]
[TimeControl "180+1"]
[EndTime "10:19:21 PST"]
[Termination "DishonorOnYourCow won by resignation"]

1. d4 {[%clk 0:03:00.9]} 1... Nf6 {[%clk 0:02:58.5]} 2. Nf3 {[%clk 0:03:00.4]}
2... g6 {[%clk 0:02:55]} 3. c4 {[%clk 0:03:00.1]} 3... Bg7 {[%clk 0:02:53.2]} 4.
Nc3 {[%clk 0:03:00.7]} 4... d5 {[%clk 0:02:49.7]} 5. cxd5 {[%clk 0:03:01.6]}
5... Nxd5 {[%clk 0:02:49.8]} 6. e4 {[%clk 0:03:02.2]} 6... Nxc3 {[%clk 0:02:50]}
7. bxc3 {[%clk 0:03:03.1]} 7... O-O {[%clk 0:02:49]} 8. Be2 {[%clk 0:03:03]}
8... c5 {[%clk 0:02:49.5]} 9. O-O {[%clk 0:03:03.3]} 9... b6 {[%clk 0:02:50.1]}
10. Be3 {[%clk 0:02:56.1]} 10... Bb7 {[%clk 0:02:49]} 11. Qc2 {[%clk 0:02:56.2]}
11... Nd7 {[%clk 0:02:48.7]} 12. Rab1 {[%clk 0:02:53.7]} 12... Rc8 {[%clk
0:02:47.7]} 13. d5 {[%clk 0:02:50.4]} 13... Qc7 {[%clk 0:02:47.8]} 14. c4 {[%clk
0:02:50.2]} 14... e6 {[%clk 0:02:42.5]} 15. Rfd1 {[%clk 0:02:48]} 15... exd5
{[%clk 0:02:42.1]} 16. exd5 {[%clk 0:02:47.4]} 16... Ne5 {[%clk 0:02:22]} 17.
Rb3 {[%clk 0:02:37.8]} 17... Rcd8 {[%clk 0:02:18.3]} 18. h3 {[%clk 0:02:33.5]}
18... Bc8 {[%clk 0:02:12.1]} 19. Nxe5 {[%clk 0:02:24.1]} 19... Bxe5 {[%clk
0:02:11.5]} 20. Bd3 {[%clk 0:02:24.7]} 20... Bd7 {[%clk 0:02:06.8]} 21. Rbb1
{[%clk 0:02:16]} 21... Rfe8 {[%clk 0:02:03.5]} 22. Re1 {[%clk 0:02:11]} 22...
Rb8 {[%clk 0:02:01.9]} 23. a4 {[%clk 0:02:05.7]} 23... Bf4 {[%clk 0:01:56.5]}
24. Bxf4 {[%clk 0:00:55.2]} 24... Qxf4 {[%clk 0:01:57.4]} 25. Ra1 {[%clk
0:00:52.2]} 25... Qd4 {[%clk 0:01:42.6]} 26. Rad1 {[%clk 0:00:45.1]} 26... Qh4
{[%clk 0:01:33.8]} 27. Ra1 {[%clk 0:00:37.4]} 27... Qd4 {[%clk 0:01:33.1]} 28.
Rad1 {[%clk 0:00:37.3]} 28... Rxe1+ {[%clk 0:01:32.7]} 29. Rxe1 {[%clk
0:00:37.3]} 29... Re8 {[%clk 0:01:21.5]} 30. Rxe8+ {[%clk 0:00:34]} 30... Bxe8
{[%clk 0:01:22.4]} 31. Bf1 {[%clk 0:00:26.6]} 31... Bd7 {[%clk 0:01:19.8]} 32.
Qa2 {[%clk 0:00:23]} 32... Qd1 {[%clk 0:01:11]} 33. a5 {[%clk 0:00:21.5]} 33...
b5 {[%clk 0:01:11.3]} 34. Qe2 {[%clk 0:00:18]} 34... Qxe2 {[%clk 0:00:56.7]} 35.
Bxe2 {[%clk 0:00:18.1]} 35... b4 {[%clk 0:00:57.6]} 36. Kf1 {[%clk 0:00:16.6]}
36... b3 {[%clk 0:00:56.2]} 37. Ke1 {[%clk 0:00:16.2]} 37... b2 {[%clk
0:00:53.7]} 38. Bd3 {[%clk 0:00:15.7]} 38... Bf5 {[%clk 0:00:54.2]} 0-1

[Event "*** Titled Tuesday Blitz"]
[Site "Chess.com"]
[Date "2020.11.10"]
[Round "2"]
[White "XDPS"]
[Black "xberli"]
[Result "1-0"]
[WhiteElo "2803"]
[BlackElo "2533"]
[TimeControl "180+1"]
[EndTime "10:19:22 PST"]
[Termination "XDPS won by resignation"]

1. d4 {[%clk 0:03:00.9]} 1... Nf6 {[%clk 0:02:58.7]} 2. Nf3 {[%clk 0:02:51.6]}
2... g6 {[%clk 0:02:57.9]} 3. Nbd2 {[%clk 0:02:51.3]} 3... Bg7 {[%clk
0:02:57.5]} 4. e4 {[%clk 0:02:47.4]} 4... d5 {[%clk 0:02:57.5]} 5. exd5 {[%clk
0:02:46.6]} 5... Nxd5 {[%clk 0:02:58.4]} 6. c3 {[%clk 0:02:39.7]} 6... O-O
{[%clk 0:02:57.6]} 7. Bc4 {[%clk 0:02:37.1]} 7... Nb6 {[%clk 0:02:57]} 8. Be2
{[%clk 0:02:36.8]} 8... N8d7 {[%clk 0:02:53.6]} 9. O-O {[%clk 0:02:35.4]} 9...
c5 {[%clk 0:02:53.4]} 10. Nb3 {[%clk 0:02:32.1]} 10... cxd4 {[%clk 0:02:51.4]}
11. Nbxd4 {[%clk 0:02:33]} 11... Nf6 {[%clk 0:02:40]} 12. h3 {[%clk 0:02:26.7]}
12... Re8 {[%clk 0:02:20.5]} 13. Bg5 {[%clk 0:02:12.1]} 13... Bd7 {[%clk
0:02:19]} 14. Ne5 {[%clk 0:02:10.1]} 14... Ba4 {[%clk 0:01:57.1]} 15. Qc1 {[%clk
0:01:50.3]} 15... Qd5 {[%clk 0:01:47.4]} 16. Bf4 {[%clk 0:01:32.5]} 16... Qc5
{[%clk 0:01:31.3]} 17. Nd3 {[%clk 0:01:21.6]} 17... Qc8 {[%clk 0:01:28.4]} 18.
Re1 {[%clk 0:01:16.7]} 18... Bd7 {[%clk 0:01:21.1]} 19. Bf3 {[%clk 0:01:14.3]}
19... Nfd5 {[%clk 0:01:02.2]} 20. Bg3 {[%clk 0:01:12.6]} 20... a5 {[%clk
0:00:55.6]} 21. Ne5 {[%clk 0:00:50.2]} 21... a4 {[%clk 0:00:16.3]} 22. a3 {[%clk
0:00:46.2]} 22... Bf5 {[%clk 0:00:14]} 23. c4 {[%clk 0:00:40.7]} 23... Nf6
{[%clk 0:00:11.9]} 24. Nxf5 {[%clk 0:00:39.3]} 24... Qxf5 {[%clk 0:00:12.8]} 25.
Bxb7 {[%clk 0:00:39.2]} 25... Rab8 {[%clk 0:00:12.7]} 26. Bf3 {[%clk 0:00:38.5]}
26... Rec8 {[%clk 0:00:10.2]} 27. Qe3 {[%clk 0:00:35.2]} 27... Nxc4 {[%clk
0:00:09.2]} 28. Nxc4 {[%clk 0:00:35.3]} 28... Rxc4 {[%clk 0:00:10.1]} 29. Bxb8
{[%clk 0:00:35.6]} 1-0